[Event "3rd Rio Open-Rapid 2024"]
[Site "Rio de Janeiro"]
[Date "2024.04.24"]
[Round "2.4"]
[White "Machado, Wallace Fernandes"]
[Black "Becker, Rogerio Sperb"]
[Result "0-1"]
[ECO "B05"]
[WhiteElo "1767"]
[BlackElo "2054"]
[Annotator "TA"]
[PlyCount "54"]
[EventDate "2024.04.12"]
[EventType "swiss"]
[EventCountry "BRA"]
[SourceTitle "playchess.com"]
[Source "ChessBase"]
[SourceQuality "1"]
[TimeControl "600+5"]

{[%evp 15,54,52,33,0,0,0,31,-9,9,-17,-23,-78,28,-77,0,-49,-51,-85,-43,-45,-58,-44,-52,-89,-79,-107,0,0,0,-357,-340,-327,-238,-389,-400,-392,-339,-332,-325,-763,-745]} 1. e4 {[%emt 0:00:07]} Nf6 {[%emt 0:00:00]} 2. e5 {[%emt 0:00:05]} Nd5 {[%emt 0:00:01]} 3. d4 {[%emt 0:00:04]} d6 {[%emt 0:00:01]} 4. exd6 {[%emt 0:00:02]} exd6 {[%emt 0:00:01]} 5. Nf3 {[%emt 0:00:04]} Be7 {[%emt 0:00:01]} 6. Be2 {[%emt 0:00:03]} O-O {[%emt 0:00:02]} 7. O-O {[%emt 0:00:01]} Bg4 {[%emt 0:00:02]} 8. c4 {[%emt 0:00:08]} Nb6 {[%emt 0:00:01]} 9. Qc2 {[%emt 0:00:20]} Nc6 {[%emt 0:00:03]} 10. Be3 {[%emt 0:00:03]} Bf6 {[%emt 0:00:03]} 11. Rd1 {[%emt 0:00:19] White is slightly better.} Re8 {[%emt 0:00:05]} 12. a3 {[%emt 0:00:01]} d5 {[%emt 0:00:20] ...Bxf3 is the strong threat.} 13. c5 {[%emt 0:00:08]} (13. Nbd2 $11 {remains equal.}) 13... Nc8 {[%emt 0:10:30]} ({Black should play} 13... Bxf3 $17 14. gxf3 (14. Bxf3 Nc4 $17) 14... Nc4 15. Bxc4 dxc4 16. Qxc4 Qd7) 14. b4 {[%emt 0:00:01] [#]} (14. h3 $11 Be6 15. Nc3) 14... N8e7 {[%emt 0:00:00]} (14... Bxf3 $1 $17 15. Bxf3 Nxd4 16. Bxd4 Bxd4) 15. Nc3 {[%emt 0:00:02]} (15. h3 $11 Bf5 16. Qb2) 15... Nf5 $1 $15 {[%emt 0:00:00]} 16. Qc1 {[%emt 0:00:57]} Bxf3 {[%emt 0:00:00]} 17. Bxf3 {[%emt 0:00:01][%cal Be2f3,Bf3d5,Bd5a2][%mdl 32]} Ncxd4 {[%emt 0:00:00]} 18. Bxd5 {[%emt 0:00:28]} c6 {[%emt 0:00:00]} 19. Ba2 {[%emt 0:00:28]} Qe7 {[%emt 0:00:00][%cal Rf5e3]} 20. Re1 {[%emt 0:00:10]} Nxe3 {[%emt 0:00:00]} ({Better is} 20... Nf3+ $17 21. gxf3 Nh4) 21. Rxe3 $11 {[%emt 0:00:14]} Qc7 {[%emt 0:00:00] [#] White must now prevent ...Rxe3.} 22. Rd3 {[%emt 0:00:11][%mdl 8192]} (22. Ne4 $11) 22... Ne2+ $19 {[%emt 0:00:00]} 23. Nxe2 {[%emt 0:00:02]} Bxa1 {[%emt 0:00:00]} 24. Qxa1 $2 {[%emt 0:00:03]} (24. Qc2 {keeps fighting.}) 24... Rxe2 {[%emt 0:00:00]} 25. Rg3 {[%emt 0:00:50][%csl Gg3][%cal Ra1g7]} Qe5 {[%emt 0:00:00]} 26. Qxe5 {[%emt 0:01:11]} Rxe5 {[%emt 0:00:00]} 27. Kf1 {[%emt 0:00:10] Prevents Re1+.} (27. h4) 27... Rae8 {[%emt 0:00:00] Weighted Error Value: White=0.82/Black=0.36.  Loses game:     	White=1     	---        Mistake:       	White=5     	Black=3      Inaccurate:     	White=5     	Black=2      OK:         	White=4     	Black=5      Best:        	White=1     	Black=2      Strong:       	---       	Black=1} 0-1

[Event "3rd Rio Open-Rapid 2024"]
[Site "Rio de Janeiro"]
[Date "2024.04.24"]
[Round "3.2"]
[White "Librelato, Kathie Goulart"]
[Black "Lage, Pedro Ferreira"]
[Result "0-1"]
[ECO "B45"]
[WhiteElo "2165"]
[BlackElo "2061"]
[Annotator "TA"]
[PlyCount "96"]
[EventDate "2024.04.12"]
[EventType "swiss"]
[EventCountry "BRA"]
[SourceTitle "playchess.com"]
[Source "ChessBase"]
[SourceQuality "1"]
[TimeControl "600+5"]

{[%evp 22,96,37,21,33,16,91,35,74,0,0,0,0,0,4,3,2,0,0,0,27,15,22,12,10,0,0,0,-9,0,-9,-31,-16,-77,-71,-81,-44,-35,-47,-57,-35,-35,0,-88,0,-4,-3,0,0,0,0,0,-8,-8,103,0,0,0,-8,-77,-77,-29976,-29977,-29977,-29978,-29979,-29980,-29984,-29985,-29987,-29988,-29988,-29989,-29990,-29990,-29990,-29991]} 1. e4 {[%emt 0:00:02]} c5 {[%emt 0:01:09]} 2. Nf3 {[%emt 0:00:02][%cal Bg1f3,Bf3d4,Bd4b5][%mdl 32]} e6 {[%emt 0:00:01]} 3. d4 {[%emt 0:00:01]} cxd4 {[%emt 0:00:01]} 4. Nxd4 {[%emt 0:00:01]} Nf6 {[%emt 0:00:01]} 5. Nc3 {[%emt 0:00:01]} Nc6 {[%emt 0:00:01]} 6. Ndb5 {[%emt 0:00:04]} Bb4 {[%emt 0:00:02]} 7. a3 {[%emt 0:00:01]} Bxc3+ {[%emt 0:00:01]} 8. Nxc3 {[%emt 0:00:02]} d5 {[%emt 0:00:01]} 9. Bd3 {[%emt 0:00:02]} dxe4 {[%emt 0:00:11]} 10. Nxe4 {[%emt 0:00:02]} Nxe4 {[%emt 0:00:03]} 11. Bxe4 {[%emt 0:00:01]} Qxd1+ {[%emt 0:00:02]} 12. Kxd1 {[%emt 0:00:02]} e5 {[%emt 0:00:31]} 13. Re1 {[%emt 0:00:06]} Be6 {[%emt 0:00:29]} (13... f6 $11) 14. Bd2 {[%emt 0:00:32]} (14. Bxc6+ $16 bxc6 15. Rxe5) 14... O-O-O {[%emt 0:00:18] White is slightly better.} 15. Kc1 {[%emt 0:00:07]} (15. Bxc6 $16 bxc6 16. Rxe5) 15... Bd5 $11 {[%emt 0:00:26]} 16. a4 {[%emt 0:01:28]} Bxe4 {[%emt 0:01:01]} 17. Rxe4 {[%emt 0:00:01]} Rd4 {[%emt 0:00:01]} 18. Rxd4 {[%emt 0:00:43]} Nxd4 {[%emt 0:00:04][%mdl 4096] Endgame. KRB-KRN} 19. b4 {[%emt 0:00:11]} Rd8 {[%emt 0:00:38]} 20. Ra3 {[%emt 0:01:06]} Ne2+ {[%emt 0:00:55]} 21. Kd1 {[%emt 0:00:01]} Nf4 {[%emt 0:00:02]} 22. Rg3 {[%emt 0:01:30]} Ne6 {[%emt 0:00:05]} 23. Kc1 {[%emt 0:00:18]} f6 {[%emt 0:00:36]} 24. Bc3 {[%emt 0:01:09]} Kc7 {[%emt 0:00:18]} 25. Rh3 {[%emt 0:00:59]} h6 {[%emt 0:00:02]} 26. Rg3 {[%emt 0:00:18]} Rd7 {[%emt 0:00:06]} 27. h4 {[%emt 0:00:04]} (27. Bd2 $11 {keeps the balance.}) 27... Nf4 $17 {[%emt 0:00:14] ...Ne2+ is the strong threat.} 28. Kb2 {[%emt 0:00:06]} Kc6 {[%emt 0:00:46] Black is more active.} 29. b5+ {[%emt 0:00:35]} Kc5 {[%emt 0:00:10]} 30. Kb3 {[%emt 0:00:02]} Kb6 {[%emt 0:02:47]} 31. Bb4 {[%emt 0:00:14]} Ne6 {[%emt 0:00:20]} 32. c4 {[%emt 0:01:06]} (32. Rd3 $11 Rxd3+ 33. cxd3) 32... Nc5+ {[%emt 0:00:07]} ({Better is} 32... a5 $17 {aiming for ...Nd4+.} 33. Ba3 Rd2) 33. Ka3 {[%emt 0:00:26] Black must now prevent a5+.} a5 {[%emt 0:00:02]} 34. bxa6 {[%emt 0:00:20]} bxa6 {[%emt 0:00:11]} 35. a5+ $1 {[%emt 0:00:10]} Kc6 {[%emt 0:00:02]} 36. h5 {[%emt 0:00:29]} Ne6 {[%emt 0:00:13]} 37. Rb3 {[%emt 0:00:30]} Nf4 {[%emt 0:00:28]} (37... Rd1 $11 {remains equal.}) 38. g4 {[%emt 0:00:03]} ({White must play} 38. Bf8 $16 {And now Rb6+ would win.} Rb7 39. Rxb7 Kxb7 40. Bxg7 Nxh5 41. Bxh6) 38... Rd3 {[%emt 0:00:15]} 39. Rxd3 {[%emt 0:00:14]} Nxd3 $11 {[%emt 0:00:02] KB-KN} 40. Bf8 {[%emt 0:00:01]} (40. f3 $11 f5 41. gxf5) 40... Nxf2 $17 {[%emt 0:00:02]} 41. Bxg7 $2 {[%emt 0:00:01][%mdl 8192] [#] Now White is beyond hope.} (41. g5 $17 fxg5 (41... hxg5 42. Bxg7 Ng4 43. Kb4 $18) 42. Bxg7) 41... Nxg4 {[%emt 0:00:02] Black mates.} 42. Kb4 {[%emt 0:00:09]} f5 {[%emt 0:00:12]} 43. Bf8 {[%emt 0:00:06]} f4 {[%emt 0:00:04]} 44. Kc3 {[%emt 0:00:02]} f3 {[%emt 0:00:01]} 45. Kd3 {[%emt 0:00:02] [#]} e4+ $1 {[%emt 0:00:09][%mdl 512]} 46. Kd2 {[%emt 0:00:15]} e3+ {[%emt 0:00:02]} 47. Ke1 {[%emt 0:00:00]} f2+ {[%emt 0:00:05]} 48. Ke2 {[%emt 0:00:01]} Nh2 {[%emt 0:00:00] Weighted Error Value: White=0.37/Black=0.18 (very precise) .  Loses game:     	White=1     	---        Mistake:       	White=6     	Black=3      Inaccurate:     	---       	Black=4      OK:         	White=6     	Black=9      Best:        	White=3     	Black=4      Strong:       	White=1     	---} 0-1

[Event "3rd Rio Open-Rapid 2024"]
[Site "Rio de Janeiro"]
[Date "2024.04.24"]
[Round "3.3"]
[White "Azevedo, Edmundo Roberto Ramo"]
[Black "Becker, Rogerio Sperb"]
[Result "1/2-1/2"]
[ECO "A48"]
[WhiteElo "1917"]
[BlackElo "2054"]
[Annotator "NA RC"]
[PlyCount "73"]
[EventDate "2024.04.12"]
[EventType "swiss"]
[EventCountry "BRA"]
[SourceTitle "playchess.com"]
[Source "ChessBase"]
[SourceQuality "1"]
[TimeControl "600+5"]

1. d4 {[%emt 0:00:05]} Nf6 {[%emt 0:00:30]} 2. Nf3 {[%emt 0:00:00]} g6 {[%emt 0:00:02]} 3. Bf4 {[%emt 0:00:00]} Bg7 {[%emt 0:00:02]} 4. e3 {[%emt 0:00:02]} O-O {[%emt 0:00:03]} 5. Be2 {[%emt 0:00:02]} d6 {[%emt 0:00:03]} 6. O-O {[%emt 0:00:03]} Nbd7 {[%emt 0:00:03]} 7. Bg5 {[%emt 0:00:03]} c5 {[%emt 0:00:02]} 8. c3 {[%emt 0:00:01]} Qb6 {[%emt 0:00:04]} 9. Qb3 {[%emt 0:00:03]} Qxb3 {[%emt 0:00:04]} 10. axb3 {[%emt 0:00:03]} a6 {[%emt 0:00:01]} 11. Nbd2 {[%emt 0:00:08]} h6 {[%emt 0:00:01]} 12. Bh4 {[%emt 0:00:03]} g5 {[%emt 0:00:03]} 13. Bg3 {[%emt 0:00:02]} Nh5 {[%emt 0:00:01]} 14. Ne4 {[%emt 0:00:25]} Nxg3 {[%emt 0:00:07]} 15. hxg3 {[%emt 0:00:03]} Nf6 {[%emt 0:00:18]} 16. Nxf6+ {[%emt 0:00:06]} Bxf6 {[%emt 0:00:01]} 17. dxc5 {[%emt 0:00:05]} dxc5 {[%emt 0:00:02]} 18. Bc4 {[%emt 0:00:14]} Bf5 {[%emt 0:00:13]} 19. Bd5 {[%emt 0:00:19]} Rab8 {[%emt 0:00:07]} 20. Rfd1 {[%emt 0:00:29]} e6 {[%emt 0:00:06]} 21. Bc4 {[%emt 0:00:06]} Rfd8 {[%emt 0:00:09]} 22. Be2 {[%emt 0:00:03]} Kf8 {[%emt 0:00:10]} 23. Rxd8+ {[%emt 0:00:07]} Rxd8 {[%emt 0:09:48]} 24. Rd1 {[%emt 0:00:01]} Bc2 {[%emt 0:00:00]} 25. Rxd8+ {[%emt 0:00:11]} Bxd8 {[%emt 0:00:00]} 26. Nd2 {[%emt 0:00:05]} Ke7 {[%emt 0:00:00]} 27. Kf1 {[%emt 0:00:03]} b6 {[%emt 0:00:00]} 28. Bxa6 {[%emt 0:00:11]} f5 {[%emt 0:00:00]} 29. Ke1 {[%emt 0:00:04]} Bc7 {[%emt 0:00:00]} 30. Be2 {[%emt 0:00:02]} e5 {[%emt 0:00:00]} 31. Bd1 {[%emt 0:00:02]} Bd3 {[%emt 0:00:00]} 32. Be2 {[%emt 0:00:02]} Bc2 {[%emt 0:00:00]} 33. Bc4 {[%emt 0:09:37]} Kf6 {[%emt 0:00:50]} 34. Nf3 Be4 {[%emt 0:00:05]} 35. Kd2 Bc6 {[%emt 0:00:05]} 36. Ne1 e4 {[%emt 0:00:05]} 37. Be2 1/2-1/2

[Event "3rd Rio Open-Rapid 2024"]
[Site "Rio de Janeiro"]
[Date "2024.04.24"]
[Round "3.4"]
[White "Reichert, Thiago Da Cruz"]
[Black "De Siqueira, Luigy Lira"]
[Result "0-1"]
[ECO "D48"]
[WhiteElo "1972"]
[BlackElo "2274"]
[Annotator "TA"]
[PlyCount "66"]
[EventDate "2024.04.12"]
[EventType "swiss"]
[EventCountry "BRA"]
[SourceTitle "playchess.com"]
[Source "ChessBase"]
[SourceQuality "1"]
[TimeControl "600+5"]

{[%evp 21,66,0,0,0,-8,-11,0,-16,-18,-31,-15,-45,-16,-53,-49,-97,-7,-6,0,0,8,-19,-37,-20,-51,-30,-14,-79,-19,-10,-11,-30,-39,-42,-12,-16,0,-22,-29,-35,-6,-2284,-2086,-29997,-29998,-29998,-29999]} 1. d4 {[%emt 0:00:02]} d5 {[%emt 0:00:01]} 2. c4 {[%emt 0:00:02]} e6 {[%emt 0:00:01]} 3. Nc3 {[%emt 0:00:03]} Nf6 {[%emt 0:00:02]} 4. e3 {[%emt 0:00:04]} c6 {[%emt 0:00:01]} 5. Nf3 {[%emt 0:00:01]} Nbd7 {[%emt 0:00:02]} 6. Bd3 {[%emt 0:00:02]} dxc4 {[%emt 0:00:01]} 7. Bxc4 {[%emt 0:00:01]} b5 {[%emt 0:00:01]} 8. Bd3 {[%emt 0:00:10]} a6 {[%emt 0:00:01]} 9. O-O {[%emt 0:00:03]} Bb7 {[%emt 0:00:01]} 10. Qe2 {[%emt 0:00:16]} c5 {[%emt 0:00:02]} 11. Rd1 {[%emt 0:00:21]} cxd4 {[%emt 0:00:04]} 12. exd4 {[%emt 0:00:21][%cal Od4d5]} Be7 {[%emt 0:00:04]} 13. Bf4 {[%emt 0:00:16]} O-O {[%emt 0:00:02]} 14. Rac1 {[%emt 0:00:04] The position is equal.} Rc8 {[%emt 0:00:02]} 15. Ne5 {[%emt 0:00:26]} Nd5 {[%emt 0:00:36]} 16. Bg3 {[%emt 0:00:24]} N7f6 {[%emt 0:00:15]} 17. Bb1 {[%emt 0:00:11]} Nxc3 {[%emt 0:00:10]} 18. bxc3 {[%emt 0:00:10]} (18. Rxc3 $15 Rxc3 19. bxc3) 18... Qd5 {[%emt 0:00:04]} (18... Ba3 $17 19. Rc2 Be4) 19. f3 $11 {[%emt 0:00:17]} Ba3 {[%emt 0:00:03]} 20. Rc2 {[%emt 0:00:16]} Nd7 {[%emt 0:00:16]} 21. Nxd7 {[%emt 0:01:00]} Qxd7 {[%emt 0:00:01]} 22. c4 {[%emt 0:00:41]} bxc4 {[%emt 0:00:05]} 23. Rxc4 {[%emt 0:00:03] [#] aiming for Qd3.} Bd6 {[%emt 0:00:03]} 24. Bh4 {[%emt 0:00:45]} (24. Bxd6 $11 {remains equal.} Qxd6 25. Ra4) 24... Be7 {[%emt 0:00:40]} ({Better is} 24... a5 $17 25. Rc2 Rxc2 26. Qxc2 g6) 25. Bxe7 {[%emt 0:01:10]} Qxe7 {[%emt 0:00:01]} 26. Rdc1 {[%emt 0:00:54]} Rxc4 {[%emt 0:00:10]} 27. Rxc4 {[%emt 0:00:03]} Qd6 {[%emt 0:00:06]} 28. Be4 {[%emt 0:00:42]} Bd5 {[%emt 0:00:01]} 29. Ra4 {[%emt 0:00:17]} Bxe4 {[%emt 0:00:07]} 30. fxe4 {[%emt 0:00:10]} Rc8 {[%emt 0:00:02] [#] Threatens to win with ...Rc1+.} 31. Qxa6 $2 {[%emt 0:01:24][%mdl 8192]} (31. Rc4 $11 Rd8 32. h3) 31... Rc1+ $19 {[%emt 0:00:02]} 32. Kf2 {[%emt 0:00:10]} Qf4+ {[%emt 0:00:01]} 33. Ke2 {[%emt 0:00:05]} Rc2+ {[%emt 0:00:02] Weighted Error Value: White=0.64/Black=0.19 (very precise) .  Loses game:     	White=1     	---        Mistake:       	White=2     	Black=2      Inaccurate:     	White=4     	Black=3      OK:         	White=3     	Black=6      Best:        	White=1     	Black=1} 0-1

[Event "3rd Rio Open-Rapid 2024"]
[Site "Rio de Janeiro"]
[Date "2024.04.24"]
[Round "4.1"]
[White "Fier, Alexandr"]
[Black "De Siqueira, Luigy Lira"]
[Result "1-0"]
[ECO "A13"]
[WhiteElo "2566"]
[BlackElo "2274"]
[Annotator "TA"]
[PlyCount "57"]
[EventDate "2024.04.12"]
[EventType "swiss"]
[EventCountry "BRA"]
[SourceTitle "playchess.com"]
[Source "ChessBase"]
[SourceQuality "1"]
[TimeControl "600+5"]

{[%evp 13,57,41,39,0,29,0,35,27,45,37,50,56,57,20,69,20,28,0,17,4,23,24,17,8,12,21,105,14,10,0,0,0,0,0,16,18,15,26,11,14,27,15,218,183,870,850]} 1. c4 {[%emt 0:00:03]} e6 {[%emt 0:00:01]} 2. Nf3 {[%emt 0:00:02]} d5 {[%emt 0:00:02]} 3. g3 {[%emt 0:00:01]} Nf6 {[%emt 0:00:03]} 4. Bg2 {[%emt 0:00:01]} dxc4 {[%emt 0:00:03]} 5. Qa4+ {[%emt 0:00:03]} Nbd7 {[%emt 0:00:01]} 6. Qxc4 {[%emt 0:00:01]} a6 {[%emt 0:00:02]} 7. Qc2 {[%emt 0:00:06]} c5 {[%emt 0:00:08]} 8. a4 {[%emt 0:00:02]} Bd6 {[%emt 0:00:14]} 9. d3 {[%emt 0:00:03]} O-O {[%emt 0:00:04]} 10. a5 {[%emt 0:00:01] White is slightly better.} Rb8 {[%emt 0:00:03]} 11. O-O {[%emt 0:00:02]} b5 {[%emt 0:00:04]} 12. axb6 {[%emt 0:00:01]} Nxb6 {[%emt 0:00:08]} 13. Na3 {[%emt 0:00:01]} Bb7 {[%emt 0:00:10]} (13... Nfd5 $11) 14. Bg5 {[%emt 0:00:13]} (14. e4 $14) 14... h6 $11 {[%emt 0:00:10]} 15. Bxf6 {[%emt 0:00:02]} Qxf6 {[%emt 0:00:02]} 16. Nd2 {[%emt 0:00:01]} Bxg2 {[%emt 0:00:25]} 17. Kxg2 {[%emt 0:00:01]} Be5 {[%emt 0:00:01]} 18. Rfb1 {[%emt 0:01:17][%cal Oa3c4]} (18. Ndc4 {simplifies} Nxc4 19. Nxc4 Bxb2 20. Rxa6 Bd4 21. Rd6) 18... Nd5 {[%emt 0:00:29]} 19. Nac4 {[%emt 0:00:03][%cal Oc2c1]} Bd4 {[%emt 0:00:12] [#]} (19... Nb4 $11 {remains equal.} 20. Qd1 Bc7) 20. Ne4 {[%emt 0:00:16] Excellent horsemanship.} (20. Rxa6 $2 {loses.} Qxf2+ (20... Bxf2 $2 21. Rf1 $18) 21. Kh1 Nb4 $19 (21... Qxe2 $2 22. Qd1 $19)) (20. e3 $1 $16) 20... Qf5 {[%emt 0:00:20]} 21. e3 {[%emt 0:00:06]} ({Not} 21. Rxa6 Nb4 22. Qa4 Nxa6 23. Qxa6 Qd5 $17) 21... Nb4 {[%emt 0:00:02]} 22. Qe2 {[%emt 0:00:02]} Bf6 {[%emt 0:00:12]} 23. Ra5 {[%emt 0:00:02]} Qd5 {[%emt 0:00:17]} 24. Rxc5 {[%emt 0:00:39]} Qxd3 {[%emt 0:00:03]} 25. Nxf6+ {[%emt 0:00:01]} gxf6 {[%emt 0:00:03]} 26. Qg4+ {[%emt 0:00:00]} Kh7 {[%emt 0:00:25]} 27. Rd1 {[%emt 0:00:01]} Qc2 {[%emt 0:00:38] [#]} (27... Qg6 $11 {and Black stays safe.} 28. h3 Qxg4 29. hxg4 Nd5) 28. Rd7 $18 {[%emt 0:00:16]} Nd5 {[%emt 0:00:57] Prevents Rcc7.} (28... Rbd8 29. Rxd8 (29. Qxe6 Rxd7 30. Qxd7 Nd3 $16) 29... Rxd8) 29. Qxe6 {[%emt 0:00:29] Weighted Error Value: White=0.13 (very precise) /Black=0.35.  Loses game:     	---       	Black=1      Mistake:       	White=2     	Black=3      Inaccurate:     	White=2     	Black=2      OK:         	White=8     	Black=7      Best:        	White=3     	---} 1-0

[Event "3rd Rio Open-Rapid 2024"]
[Site "Rio de Janeiro"]
[Date "2024.04.24"]
[Round "4.3"]
[White "Urquiza, Marcello de Albuquer"]
[Black "De Souza, Felipe Guimaraes"]
[Result "1/2-1/2"]
[ECO "B06"]
[WhiteElo "2005"]
[BlackElo "2022"]
[Annotator "NA RC"]
[PlyCount "92"]
[EventDate "2024.04.12"]
[EventType "swiss"]
[EventCountry "BRA"]
[SourceTitle "playchess.com"]
[Source "ChessBase"]
[SourceQuality "1"]
[TimeControl "600+5"]

1. e4 {[%emt 0:00:03]} c6 {[%emt 0:00:05]} 2. d4 {[%emt 0:00:01]} g6 {[%emt 0:00:03]} 3. Nf3 {[%emt 0:00:06]} d5 {[%emt 0:00:08]} 4. e5 {[%emt 0:00:34]} Bg4 {[%emt 0:00:07]} 5. Be2 {[%emt 0:00:17]} Bg7 {[%emt 0:00:26]} 6. O-O {[%emt 0:00:11]} Nh6 {[%emt 0:00:19]} 7. Nbd2 {[%emt 0:00:06]} O-O {[%emt 0:00:06]} 8. h3 {[%emt 0:00:03]} Bxf3 {[%emt 0:00:08]} 9. Nxf3 {[%emt 0:00:01]} f6 {[%emt 0:00:59]} 10. Bf4 {[%emt 0:01:26]} Nf7 {[%emt 0:00:23]} 11. Qd2 {[%emt 0:00:50]} Qc8 {[%emt 0:00:51]} 12. Rfe1 {[%emt 0:00:10]} f5 {[%emt 0:00:06]} 13. c4 {[%emt 0:00:28]} e6 {[%emt 0:00:39]} 14. Rac1 {[%emt 0:00:06]} h6 {[%emt 0:00:06]} 15. h4 {[%emt 0:00:12]} Qd7 {[%emt 0:00:22]} 16. b4 {[%emt 0:00:49]} a5 {[%emt 0:00:50]} 17. b5 {[%emt 0:00:10]} dxc4 {[%emt 0:00:07]} 18. bxc6 {[%emt 0:00:02]} Nxc6 {[%emt 0:00:06]} 19. Bxc4 {[%emt 0:00:02]} Nb4 {[%emt 0:00:14]} 20. d5 {[%emt 0:00:56]} Nxd5 {[%emt 0:00:02]} 21. Bxd5 {[%emt 0:00:01]} Qxd5 {[%emt 0:00:03]} 22. Qxd5 {[%emt 0:00:02]} exd5 {[%emt 0:00:02]} 23. e6 {[%emt 0:00:03]} Nh8 {[%emt 0:00:03]} 24. Rc7 {[%emt 0:02:02]} Rfe8 {[%emt 0:00:02]} 25. Rxb7 {[%emt 0:00:10]} Ra6 {[%emt 0:00:03]} 26. e7 {[%emt 0:00:53]} Kf7 {[%emt 0:00:35]} 27. Ne5+ {[%emt 0:00:32]} Bxe5 {[%emt 0:00:05]} 28. Bxe5 {[%emt 0:00:02]} Re6 {[%emt 0:00:05]} 29. f4 {[%emt 0:00:06]} g5 {[%emt 0:00:17]} 30. Rd1 {[%emt 0:00:30]} Ng6 {[%emt 0:00:09]} 31. Rxd5 {[%emt 0:00:43]} gxf4 {[%emt 0:00:26]} 32. Bd4 {[%emt 0:00:46]} Nxh4 {[%emt 0:00:07]} 33. Bf2 {[%emt 0:00:02]} Ng6 {[%emt 0:00:28]} 34. Rxf5+ {[%emt 0:00:02]} Kg7 {[%emt 0:00:18]} 35. Bd4+ {[%emt 0:00:06]} Kg8 {[%emt 0:00:02]} 36. Rxa5 {[%emt 0:00:06]} R8xe7 {[%emt 0:00:04]} 37. Rxe7 {[%emt 0:00:07]} Nxe7 {[%emt 0:00:08]} 38. Re5 {[%emt 0:00:06]} Rxe5 {[%emt 0:00:33]} 39. Bxe5 {[%emt 0:00:01]} Ng6 {[%emt 0:00:02]} 40. Bc7 {[%emt 0:00:05]} Kf7 {[%emt 0:00:02]} 41. Kf2 {[%emt 0:00:01]} Ke6 {[%emt 0:00:01]} 42. Kf3 {[%emt 0:00:05]} Kf5 {[%emt 0:00:24]} 43. a4 {[%emt 0:00:02]} Nh4+ {[%emt 0:00:17]} 44. Kf2 {[%emt 0:00:01]} Ke4 {[%emt 0:00:02]} 45. a5 {[%emt 0:00:06]} Kd5 {[%emt 0:00:11]} 46. Bxf4 {[%emt 0:00:06]} Nxg2 {[%emt 0:00:04]} 1/2-1/2

[Event "3rd Rio Open-Rapid 2024"]
[Site "Rio de Janeiro"]
[Date "2024.04.24"]
[Round "4.4"]
[White "Becker, Rogerio Sperb"]
[Black "Roland, Marcos Maldonado"]
[Result "1-0"]
[ECO "E09"]
[WhiteElo "2054"]
[BlackElo "2089"]
[Annotator "NA RC"]
[PlyCount "81"]
[EventDate "2024.04.12"]
[EventType "swiss"]
[EventCountry "BRA"]
[SourceTitle "playchess.com"]
[Source "ChessBase"]
[SourceQuality "1"]
[TimeControl "600+5"]

1. c4 {[%emt 0:00:05]} e6 {[%emt 0:00:13]} 2. Nf3 {[%emt 0:00:01]} d5 {[%emt 0:00:03]} 3. g3 {[%emt 0:00:01]} Nf6 {[%emt 0:00:15]} 4. Bg2 {[%emt 0:00:02]} Be7 {[%emt 0:00:23]} 5. O-O {[%emt 0:00:02]} O-O {[%emt 0:00:07]} 6. d4 {[%emt 0:00:01]} c6 {[%emt 0:00:07]} 7. Qd3 {[%emt 0:00:09]} Nbd7 {[%emt 0:00:41]} 8. Nc3 {[%emt 0:00:04]} b6 {[%emt 0:00:02]} 9. e4 {[%emt 0:00:01]} dxe4 {[%emt 0:00:13]} 10. Nxe4 {[%emt 0:00:03]} Bb7 {[%emt 0:00:02]} 11. Bf4 {[%emt 0:00:26]} Nxe4 {[%emt 0:00:23]} 12. Qxe4 {[%emt 0:00:02]} Nf6 {[%emt 0:00:03]} 13. Qe2 {[%emt 0:00:02]} c5 {[%emt 0:00:13]} 14. Rad1 {[%emt 0:00:10]} Qc8 {[%emt 0:00:12]} 15. d5 {[%emt 0:00:10]} Rd8 {[%emt 0:01:08]} 16. dxe6 {[%emt 0:00:26]} Qxe6 {[%emt 0:00:03]} 17. Qxe6 {[%emt 0:00:02]} fxe6 {[%emt 0:00:02]} 18. Ng5 {[%emt 0:00:07]} Bxg2 {[%emt 0:00:05]} 19. Kxg2 {[%emt 0:00:01]} Nh5 {[%emt 0:00:10]} 20. Nxe6 {[%emt 0:00:06]} Nxf4+ {[%emt 0:00:02]} 21. Nxf4 {[%emt 0:00:02]} Bf6 {[%emt 0:00:19]} 22. b3 {[%emt 0:00:02]} Kf7 {[%emt 0:00:31]} 23. Nd5 {[%emt 0:00:04]} Bd4 {[%emt 0:00:33]} 24. f4 {[%emt 0:00:03]} Rd7 {[%emt 0:00:04]} 25. Rfe1 {[%emt 0:00:05]} g6 {[%emt 0:00:12]} 26. a4 {[%emt 0:00:04]} h5 {[%emt 0:00:19]} 27. Kf3 {[%emt 0:00:02]} Rb8 {[%emt 0:00:12]} 28. b4 {[%emt 0:00:30]} Bg7 {[%emt 0:01:21]} 29. b5 {[%emt 0:00:03]} Bd4 {[%emt 0:00:12]} 30. Re4 {[%emt 0:00:03]} Rh8 {[%emt 0:00:15]} 31. Rde1 {[%emt 0:00:02]} Bf6 {[%emt 0:00:15]} 32. Re6 {[%emt 0:00:03]} Bd8 {[%emt 0:00:08]} 33. h3 {[%emt 0:00:13]} Rh7 {[%emt 0:00:46]} 34. Rc6 {[%emt 0:00:28]} Rh8 {[%emt 0:00:10]} 35. Ree6 {[%emt 0:00:08]} Rg8 {[%emt 0:00:12]} 36. Red6 {[%emt 0:00:12]} Rxd6 {[%emt 0:01:27]} 37. Rxd6 {[%emt 0:00:02]} Ke8 {[%emt 0:00:33]} 38. Ke4 {[%emt 0:00:07]} Rg7 {[%emt 0:00:01]} 39. Ke5 {[%emt 0:00:23]} Bc7 {[%emt 0:00:12]} 40. Nxc7+ {[%emt 0:00:03]} Rxc7 {[%emt 0:00:02]} 41. Rxg6 {[%emt 0:00:05]} 1-0